fUST/lending_fUST_20250816
["ID","MTS","AMOUNT","RATE_DAILY","PERIOD"]
[379553796,1755329450174,-415.729119,0.00022739,7]
[379553797,1755329450184,-480.0,0.00022739,3]
[379553798,1755329450193,-415.729119,0.00022739,7]
[379553799,1755329450202,-480.0,0.00022739,3]
[379553800,1755329450211,-151.0,0.00022739,7]
[379553801,1755329450221,-480.0,0.00022739,3]
[379553802,1755329450230,-480.0,0.00022739,3]
[379553803,1755329450239,-151.0,0.00022739,7]
[379553804,1755329450248,-480.0,0.00022739,3]
[379553805,1755329450258,-151.0,0.00022739,7]
[379553806,1755329450268,-151.0,0.00022739,7]
[379553807,1755329450278,-549.37,0.00022739,3]
[379553808,1755329450287,-440.0,0.00022739,3]
[379553809,1755329450296,-480.0,0.00022739,3]
[379553810,1755329450306,-480.0,0.00022739,3]
[379553812,1755329450315,-440.0,0.00022739,3]
[379553814,1755329450325,-677.237373,0.00022739,7]
[379553816,1755329450334,-677.237373,0.00022739,7]
[379553818,1755329450343,-480.0,0.00022739,3]
[379553820,1755329450352,-480.0,0.00022739,3]
[379553822,1755329450362,-480.0,0.00022739,3]
[379553824,1755329450371,-440.0,0.00022739,3]
[379553826,1755329450380,-480.0,0.00022739,3]
[379553829,1755329450395,-1876.4,0.00022739,3]
[379553830,1755329450405,-480.0,0.00022739,3]
[379553832,1755329450415,-480.0,0.00022739,3]
[379553834,1755329450424,-480.0,0.00022739,3]
[379553836,1755329450434,-480.0,0.00022739,3]
[379553838,1755329450443,-320.0,0.00022739,3]
[379553840,1755329450452,-480.0,0.00022739,3]
[379553842,1755329450461,-194.82823149,0.00022739,3]
[379553844,1755329450471,-480.0,0.00022739,3]
[379553846,1755329450480,-480.0,0.00022739,3]
[379553848,1755329450489,-709.72,0.00022739,3]
[379553850,1755329450498,-585.38,0.00022739,3]
[379553852,1755329450509,-440.0,0.00022739,3]
[379553854,1755329450518,-480.0,0.00022739,3]
[379553856,1755329450527,-480.0,0.00022739,3]
[379553858,1755329450536,-412.83138638,0.00022739,3]
[379553860,1755329450547,-480.0,0.00022739,3]
[379553862,1755329450556,-480.0,0.00022739,3]
[379553864,1755329450565,-480.0,0.00022739,3]
[379553866,1755329450575,-480.0,0.00022739,3]
[379553868,1755329450585,-480.0,0.00022739,3]
[379553870,1755329450595,-1061.677237,0.00022739,7]
[379553872,1755329450606,-1061.677237,0.00022739,7]
[379553874,1755329450615,-480.0,0.00022739,3]
[379553876,1755329450624,-480.0,0.00022739,3]
[379553878,1755329450634,-2992.86,0.00022739,3]
[379553880,1755329450643,-480.0,0.00022739,3]
[379553882,1755329450653,-5036.59,0.00022739,3]
[379553884,1755329450663,-480.0,0.00022739,3]
[379553886,1755329450672,-480.0,0.00022739,3]
[379553888,1755329450681,-480.0,0.00022739,3]
[379553890,1755329450691,-742.08,0.00022739,3]
[379553892,1755329450701,-930.38,0.00022739,3]
[379553894,1755329450710,-480.0,0.00022739,3]
[379553895,1755329450722,-261.92400709,0.00022739,2]
[379553897,1755329450732,-654.46,0.00022739,3]
[379553899,1755329450741,-480.0,0.00022739,3]
[379553901,1755329450751,-634.75,0.00022739,3]
[379553903,1755329450760,-400.0,0.00022739,3]
[379553905,1755329450772,-715.32,0.00022739,3]
[379553907,1755329450783,-480.0,0.00022739,3]
[379553909,1755329450792,-480.0,0.00022739,3]
[379553911,1755329450802,-527.73911418,0.00022739,3]
[379553913,1755329450812,-9668.56,0.00022739,3]
[379553915,1755329450823,-480.0,0.00022739,3]
[379553917,1755329450833,-1192.55,0.00022739,3]
[379553919,1755329450842,-151.0,0.00022739,7]
[379553921,1755329450853,-281.44,0.00022739,3]
[379553923,1755329450863,-496.0,0.00022739,3]
[379553925,1755329450872,-699.68,0.00022739,3]
[379553927,1755329450882,-151.0,0.00022739,7]
[379553929,1755329450892,-400.0,0.00022739,3]
[379553931,1755329450902,-2718.59,0.00022739,3]
[379553933,1755329450911,-836.59,0.00022739,3]
[379553935,1755329450921,-480.0,0.00022739,3]
[379553937,1755329450930,-480.0,0.00022739,3]
[379553939,1755329450941,-480.0,0.00022739,3]
[379553941,1755329450951,-420.0,0.00022739,3]
[379553943,1755329450960,-480.0,0.00022739,3]
[379553945,1755329450970,-634.38,0.00022739,3]
[379553947,1755329450979,-400.0,0.00022739,3]
[379553949,1755329450988,-1825.98,0.00022739,3]
[379553951,1755329450997,-338.27566146,0.00022739,3]
[379553953,1755329451006,-480.0,0.00022739,3]
[379553955,1755329451015,-746.656327,0.00022739,7]
[379553957,1755329451025,-569.79,0.00022739,3]
[379553959,1755329451034,-480.0,0.00022739,3]
[379553961,1755329451043,-746.656327,0.00022739,7]
[379553963,1755329451052,-790.23,0.00022739,3]
[379553964,1755329451061,-1425.61,0.00022739,3]
[379553966,1755329451071,-480.0,0.00022739,3]
[379553968,1755329451080,-838.14,0.00022739,3]
[379553970,1755329451089,-480.0,0.00022739,3]
[379553972,1755329451098,-480.0,0.00022739,3]
[379553974,1755329451107,-939.2,0.00022739,3]
[379553976,1755329451117,-526.52,0.00022739,3]
[379553978,1755329451126,-480.0,0.00022739,3]
[379553980,1755329451135,-480.0,0.00022739,3]
[379553982,1755329451144,-574.82,0.00022739,3]
[379553985,1755329451154,-592.08,0.00022739,3]
[379553986,1755329451163,-2027.14,0.00022739,3]
[379553988,1755329451173,-480.0,0.00022739,3]
[379553990,1755329451182,-400.0,0.00022739,3]
[379553992,1755329451192,-1571.41,0.00022739,3]
[379553994,1755329451203,-667.45,0.00022739,3]
[379553996,1755329451212,-683.44,0.00022739,3]
[379553998,1755329451221,-480.0,0.00022739,3]
[379554000,1755329451231,-320.0,0.00022739,3]
[379554002,1755329451240,-866.22,0.00022739,3]
[379554004,1755329451250,-480.0,0.00022739,3]
[379554006,1755329451259,-480.0,0.00022739,3]
[379554008,1755329451268,-480.0,0.00022739,3]
[379554010,1755329451277,-480.0,0.00022739,3]
[379554012,1755329451287,-420.0,0.00022739,3]
[379554014,1755329451297,-2309.22,0.00022739,3]
[379554016,1755329451306,-776.23,0.00022739,3]
[379554018,1755329451316,-360.0,0.00022739,3]
[379554020,1755329451326,-480.0,0.00022739,3]
[379554023,1755329451336,-502.59,0.00022739,3]
[379554024,1755329451345,-5567.58,0.00022739,3]
[379554026,1755329451355,-628.71,0.00022739,3]
[379554028,1755329451364,-480.0,0.00022739,3]
[379554030,1755329451373,-1303.76,0.00022739,3]
[379554033,1755329451383,-480.0,0.00022739,3]
[379554034,1755329451392,-413.10284413,0.00022739,3]
[379554036,1755329451401,-380.0,0.00022739,3]
[379554038,1755329451411,-222.9537631,0.00022772,2]
[379554040,1755329451420,-168.0,0.00022773,2]
[379554042,1755329451430,-51869.17277503,0.000229,2]
[379554057,1755329451566,-36525.0,0.000229,2]
[379554072,1755329451707,-480.0,0.00021917,3]
[379554074,1755329451717,-480.0,0.00022191,3]
[379554076,1755329451726,-417.43721432,0.00022465,3]
[379554078,1755329451736,-3057.86278566,0.000229,2]
[379554088,1755329451823,371.14170101,0.000199,2]
[379554123,1755329452158,-371.14170099,0.00020408,2]
[379554125,1755329452167,-371.14170099,0.00020916,2]
[379554127,1755329452176,-371.14170099,0.00021424,2]
[379554128,1755329452185,-480.0,0.00021917,3]
[379554130,1755329452195,-480.0,0.00021917,3]
[379554132,1755329452204,-371.14170099,0.00021932,2]
[379554134,1755329452213,-480.0,0.00022191,3]
[379554136,1755329452222,-480.0,0.00022191,3]
[379554138,1755329452232,-371.14170099,0.0002244,2]
[379554140,1755329452241,-440.0,0.00022465,3]
[379554142,1755329452251,-480.0,0.00022465,3]
[379554144,1755329452260,-480.0,0.00022739,3]
[379554146,1755329452270,-44762.65592603,0.000229,2]
[379554710,1755329617173,396.78511624,0.000199,2]
[379554728,1755329758867,200.0,0.000222,69]
[379554730,1755329792889,384.60169889,0.000199,2]
[379554754,1755329982936,397.24207999,0.000199,2]
[379554757,1755329996045,5000.0,0.0001995,2]
[379554759,1755330012458,5000.0,0.0001995,2]
[379554767,1755330078652,170.23457374,0.00019598,2]
[379554773,1755330120868,1267.0,0.000199,2]
[379554781,1755330156211,422.83482992,0.000199,2]
[379554786,1755330168092,5000.0,0.0001995,2]
[379554788,1755330185255,732.99475436,0.0001995,2]
[379554789,1755330185279,4267.00524564,0.0001995,2]
[379554792,1755330201427,5000.0,0.0001995,2]
[379554815,1755330328720,437.52075779,0.000199,2]
[379554817,1755330332424,150.0,0.00018941,2]
[379554831,1755330424173,500.0,0.00019,2]
[379554832,1755330427124,-367.34386043,0.00020358,2]
[379554834,1755330431114,-622.31890902,0.00020358,2]
[379554835,1755330434091,-889.5372401,0.00020358,2]
[379554837,1755330435089,-15.11589659,0.00020358,2]
[379554839,1755330435115,-437.52075753,0.00020408,2]
[379554840,1755330435136,-203.3,0.00020458,2]
[379554841,1755330435157,-421.10702506,0.00020527,2]
[379554842,1755330457011,622.3979606,0.000189,2]
[379554850,1755330510506,408.35270726,0.000199,2]
[379554854,1755330556199,292.400596,0.00013699,2]
[379554874,1755330632748,-292.400596,0.00020187,2]
[379554875,1755330632758,-87.99064163,0.00020408,2]
[379554876,1755330632769,-320.36206539,0.00020408,2]
[379554877,1755330632778,-366.10378264,0.00020527,2]
[379554878,1755330632787,-116.87224328,0.00020703,2]
[379554879,1755330632831,-152.82373472,0.00020703,2]
[379554880,1755330632842,-199.85800194,0.00020916,2]
[379554881,1755330632854,-208.49470508,0.00020916,2]
[379554882,1755330632867,-500.0,0.00021112,2]
[379554883,1755330632876,-408.35270702,0.00021424,2]
[379554884,1755330632885,-200.0,0.00021466,2]
[379554885,1755330632894,-1000.0,0.000218,2]
[379554886,1755330632903,-387.95002529,0.000218,3]
[379554887,1755330632915,-612.04997471,0.000218,3]
[379554889,1755330632924,-1000.0,0.000218,4]
[379554890,1755330632934,-239.14688081,0.00021804,2]
[379554891,1755330632943,-151.0,0.00021804,2]
[379554893,1755330632952,-151.0,0.00021804,2]
[379554895,1755330632962,-151.0,0.00021804,2]
[379554898,1755330632971,-151.0,0.00021804,2]
[379554901,1755330632981,-151.0,0.00021804,2]
[379554904,1755330632990,-151.0,0.00021804,2]
[379554906,1755330632999,-151.0,0.00021804,2]
[379554908,1755330633009,-151.0,0.00021804,2]
[379554910,1755330633018,-151.0,0.00021804,2]
[379554911,1755330633027,-151.0,0.00021804,2]
[379554912,1755330633036,-300.0,0.00021814,2]
[379554913,1755330633047,-160.0,0.00021815,2]
[379554914,1755330633056,-160.0,0.00021815,2]
[379554915,1755330633066,-232.11368524,0.00021815,2]
[379554916,1755330633075,-160.0,0.00021815,2]
[379554917,1755330633084,-215.68093138,0.00021815,2]
[379554918,1755330633094,-1000.0,0.00021817,2]
[379554919,1755330633103,-6584.56423988,0.00021817,2]
[379554930,1755330638932,-1423.47555891,0.00021817,2]
[379554931,1755330638943,-361.57,0.00021907,10]
[379554932,1755330638953,-564.54,0.00021907,10]
[379554933,1755330638964,-465.23220887,0.00021907,10]
[379554934,1755330638978,-5.21779113,0.00021907,10]
[379554935,1755330638989,-269.42605915,0.00021917,3]
[379554936,1755330639003,-216.70394085,0.00021917,3]
[379554937,1755330639014,-243.29605915,0.00021917,3]
[379554963,1755330640725,-236.70394085,0.00021917,3]
[379554966,1755330640737,-480.0,0.00021917,3]
[379554968,1755330640747,-480.0,0.00021917,3]
[379554970,1755330640759,-462.32933354,0.00021917,3]
[379554972,1755330640769,-460.0,0.00021917,3]
[379554974,1755330640780,-460.0,0.00021917,3]
[379554976,1755330640791,-453.98976716,0.00021917,3]
[379554978,1755330640801,-460.0,0.00021917,3]
[379554980,1755330640812,-480.0,0.00021917,3]
[379554982,1755330640822,-471.97695845,0.00021917,3]
[379554985,1755330640835,-8.02304155,0.00021917,3]
[379554987,1755330640847,-480.0,0.00021917,3]
[379554989,1755330640858,-480.0,0.00021917,3]
[379554991,1755330640869,-681.38,0.00021917,3]
[379554993,1755330640880,-1135.83,0.00021917,3]
[379554995,1755330640890,-588.91747963,0.00021917,3]
[379554998,1755330640903,-480.0,0.00021917,3]
[379555000,1755330640915,-460.0,0.00021917,3]
[379555002,1755330640926,-480.0,0.00021917,3]
[379555004,1755330640936,-480.0,0.00021917,3]
[379555006,1755330640946,-440.0,0.00021917,3]
[379555008,1755330640957,-480.0,0.00021917,3]
[379555010,1755330640967,-480.0,0.00021917,3]
[379555012,1755330640978,-480.0,0.00021917,3]
[379555014,1755330640989,-480.0,0.00021917,3]
[379555017,1755330641000,-480.0,0.00021917,3]
[379555019,1755330641010,-480.0,0.00021917,3]
[379555021,1755330641020,-460.0,0.00021917,3]
[379555023,1755330641031,-480.0,0.00021917,3]
[379555025,1755330641041,-480.0,0.00021917,3]
[379555027,1755330641054,-480.0,0.00021917,3]
[379555029,1755330641065,-461.27535362,0.00021917,3]
[379555031,1755330641076,-414.46618828,0.00021917,3]
[379555033,1755330641086,-480.0,0.00021917,3]
[379555035,1755330641097,-460.0,0.00021917,3]
[379555037,1755330641108,-480.0,0.00021917,3]
[379555040,1755330641119,-480.0,0.00021917,3]
[379555042,1755330641130,-480.0,0.00021917,3]
[379555044,1755330641141,-480.0,0.00021917,3]
[379555046,1755330641152,-461.70036656,0.00021917,3]
[379555048,1755330641164,-480.0,0.00021917,3]
[379555050,1755330641175,-480.0,0.00021917,3]
[379555052,1755330641186,-649.32,0.00021917,3]
[379555054,1755330641197,-480.0,0.00021917,3]
[379555056,1755330641209,-480.0,0.00021917,3]
[379555058,1755330641220,-480.0,0.00021917,3]
[379555061,1755330641235,-480.0,0.00021917,3]
[379555063,1755330641248,-480.0,0.00021917,3]
[379555065,1755330641260,-440.0,0.00021917,3]
[379555067,1755330641271,-440.0,0.00021917,3]
[379555069,1755330641283,-480.0,0.00021917,3]
[379555072,1755330641295,-460.0,0.00021917,3]
[379555074,1755330641306,-480.0,0.00021917,3]
[379555076,1755330641318,-480.0,0.00021917,3]
[379555078,1755330641330,-460.0,0.00021917,3]
[379555080,1755330641345,-194.82823149,0.00021917,3]
[379555081,1755330641357,-480.0,0.00021917,3]
[379555082,1755330641368,-480.0,0.00021917,3]
[379555083,1755330641379,-871.9,0.00021917,3]
[379555084,1755330641390,-460.0,0.00021917,3]
[379555085,1755330641401,-1705.65,0.00021917,3]
[379555086,1755330641414,-460.0,0.00021917,3]
[379555087,1755330641426,-480.0,0.00021917,3]
[379555088,1755330641437,-460.0,0.00021917,3]
[379555089,1755330641448,-480.0,0.00021917,3]
[379555090,1755330641459,-400.0,0.00021917,3]
[379555091,1755330641469,-480.0,0.00021917,3]
[379555092,1755330641480,-728.83,0.00021917,3]
[379555093,1755330641491,-512.21,0.00021917,3]
[379555094,1755330641501,-320.0,0.00021917,3]
[379555095,1755330641512,-480.0,0.00021917,3]
[379555096,1755330641523,-400.0,0.00021917,3]
[379555097,1755330641533,-4871.58,0.00021917,3]
[379555098,1755330641544,-480.0,0.00021917,3]
[379555099,1755330641555,-480.0,0.00021917,3]
[379555100,1755330641566,-440.0,0.00021917,3]
[379555101,1755330641576,-460.0,0.00021917,3]
[379555102,1755330641587,-480.0,0.00021917,3]
[379555103,1755330641597,-400.0,0.00021917,3]
[379555104,1755330641608,-275.88,0.00021917,3]
[379555105,1755330641619,-480.0,0.00021917,3]
[379555106,1755330641629,-814.08,0.00021917,3]
[379555107,1755330641640,-480.0,0.00021917,3]
[379555108,1755330641650,-555.41,0.00021917,3]
[379555109,1755330641659,-480.0,0.00021917,3]
[379555110,1755330641670,-480.0,0.00021917,3]
[379555111,1755330641679,-460.0,0.00021917,3]
[379555112,1755330641688,-480.0,0.00021917,3]
[379555113,1755330641698,-480.0,0.00021917,3]
[379555114,1755330641707,-480.0,0.00021917,3]
[379555115,1755330641716,-480.0,0.00021917,3]
[379555116,1755330641726,-261.92400709,0.00021917,2]
[379555117,1755330641735,-243.71053754,0.00021917,3]
[379555317,1755330643761,-936.46362773,0.00021817,2]
[379555636,1755330646879,-3814.72952978,0.00021817,2]
[379555646,1755330646962,-313.2772013,0.00021817,2]
[379555656,1755330647046,-14411.77165805,0.00021817,2]
[379556910,1755330681665,353.90567963,0.000199,2]
[379556914,1755330766994,414.93197373,0.00019817,2]
[379556922,1755330856311,933.14997086,0.000199,2]
[379556950,1755331029974,905.72392039,0.000199,2]
[379556963,1755331068582,276.62131582,0.00019817,2]
[379556989,1755331232406,200.0,0.00026365,120]
[379556990,1755331233543,875.53312286,0.000199,2]
[379556997,1755331293065,200.0,0.00028505,120]
[379557004,1755331369697,184.41421055,0.00019817,2]
[379557006,1755331416502,848.17918423,0.000199,2]
[379557033,1755331545172,290.456157,0.00013699,2]
[379557038,1755331555159,-150.0,0.0002,2]
[379557039,1755331555180,-175.03386162,0.00020153,2]
[379557048,1755331588416,828.78926975,0.000199,2]
[379557054,1755331642078,-251.70148214,0.0002,2]
[379557055,1755331642099,-105.02280813,0.00020153,2]
[379557056,1755331642122,-290.456157,0.00020187,2]
[379557057,1755331642143,-157.0,0.00020252,2]
[379557058,1755331642164,-133.1055266,0.00020252,2]
[379557061,1755331648085,-166.8944734,0.00020252,2]
[379557062,1755331648107,-300.0,0.00020253,2]
[379557063,1755331648128,-120.84271795,0.00020253,2]
[379557064,1755331671318,150.0,0.000189,2]
[379557071,1755331778280,801.16296071,0.000199,2]
[379557078,1755331832088,-948.29839736,0.00020252,2]
[379557080,1755331832099,-251.70160264,0.00020252,2]
[379557082,1755331832109,-1200.0,0.00020253,2]
[379557084,1755331832119,-300.0,0.00020253,2]
[379557086,1755331832128,-300.0,0.00020253,2]
[379557087,1755331832138,-300.0,0.00020253,2]
[379557088,1755331832148,-300.0,0.00020253,2]
[379557089,1755331832158,-500.0,0.00020254,2]
[379557090,1755331832167,-500.0,0.00020254,2]
[379557091,1755331832177,-500.0,0.00020254,2]
[379557092,1755331832187,-500.0,0.00020254,2]
[379557093,1755331832199,-344.93982803,0.00020254,2]
[379557095,1755331832211,-155.06017197,0.00020254,2]
[379557098,1755331832220,-500.0,0.00020254,2]
[379557102,1755331832230,-500.0,0.00020254,2]
[379557104,1755331832239,-10.23373421,0.00020254,2]
[379557106,1755331832251,-489.76626579,0.00020254,2]
[379557108,1755331832261,-587.22655257,0.00020254,2]
[379557110,1755331832273,-35.50943039,0.00020254,2]
[379557112,1755331832284,-500.0,0.00020254,2]
[379557114,1755331832294,-66.26462629,0.00020254,2]
[379557116,1755331832305,-255.57243791,0.00020254,2]
[379557119,1755331832319,-0.78255857,0.00020254,2]
[379557121,1755331832328,-500.0,0.00020254,2]
[379557123,1755331832338,-134.17865338,0.00020254,2]
[379557125,1755331832358,-365.82134662,0.00020254,2]
[379557127,1755331832377,-200.0,0.00020254,2]
[379557129,1755331832387,-500.0,0.00020254,2]
[379557131,1755331832396,-500.0,0.00020254,2]
[379557133,1755331832405,-625.16887086,0.00020254,2]
[379557135,1755331832415,-8168.49063525,0.00020255,2]
[379557137,1755331832427,-6795.04722779,0.00020255,2]
[379557182,1755331838133,-877.15255377,0.00020255,2]
[379557185,1755331838145,-460.0,0.00020255,2]
[379557187,1755331838156,-15816.12044864,0.00020255,2]
[379557189,1755331838169,-1631.92623624,0.00020255,2]
[379557191,1755331838180,-329.91665437,0.00020255,2]
[379557193,1755331838192,-3375.01740003,0.00020255,2]
[379557210,1755331838399,-32851.04922771,0.00020255,2]
[379557211,1755331838410,-1576.46800224,0.00020308,2]
[379557212,1755331838418,-801.16296064,0.00020408,2]
[379557213,1755331838428,-4007.5416011,0.0002054,2]
[379557214,1755331838438,-5726.4833719,0.00020631,2]
[379557215,1755331838449,-200.0,0.00020657,20]
[379557216,1755331838459,-200.0,0.00020657,20]
[379557217,1755331838468,-200.0,0.00020657,20]
[379557218,1755331838477,-200.0,0.00020657,20]
[379557219,1755331838487,-200.0,0.00020657,20]
[379557220,1755331838497,-200.0,0.00020657,20]
[379557221,1755331838506,-200.0,0.00020657,20]
[379557222,1755331838516,-200.0,0.00020657,20]
[379557223,1755331838525,-657.899031,0.00020864,2]
[379557224,1755331838535,-175.0,0.00020902,2]
[379557225,1755331838544,-801.16296064,0.00020916,2]
[379557226,1755331838554,-1576.4680022,0.00021353,2]
[379557227,1755331838563,-801.16296064,0.00021424,2]
[379557228,1755331838572,-232.13,0.00021767,10]
[379557229,1755331838582,-278.55,0.00021777,10]
[379557230,1755331838591,-334.26,0.00021787,10]
[379557231,1755331838600,-346.67,0.00021797,10]
[379557232,1755331838609,-212.30166144,0.00021804,2]
[379557233,1755331838618,-46425.72312769,0.00021805,2]
[379557234,1755331838627,-160.0,0.00021815,2]
[379557235,1755331838636,-6181.08989031,0.00021817,2]
[379557236,1755331838646,-26739.73298197,0.00021817,2]
[379557237,1755331838655,-437.08858298,0.00021817,2]
[379557238,1755331838664,-255.73183203,0.00021873,2]
[379557239,1755331838674,-154.31913298,0.00021877,2]
[379557240,1755331838683,-443.2,0.00021907,3]
[379557241,1755331838692,-221.6,0.00021907,3]
[379557242,1755331838702,-664.85,0.00021907,3]
[379557243,1755331838711,-480.0,0.00021917,3]
[379557244,1755331838720,-396.68779725,0.00021917,3]
[379557245,1755331838729,-460.0,0.00021917,3]
[379557246,1755331838739,-480.0,0.00021917,3]
[379557247,1755331838748,-440.0,0.00021917,3]
[379557248,1755331838757,-516.76,0.00021917,3]
[379557249,1755331838766,-440.0,0.00021917,3]
[379557250,1755331838775,-440.0,0.00021917,3]
[379557251,1755331838785,-540.0,0.00021917,3]
[379557252,1755331838795,-440.0,0.00021917,3]
[379557253,1755331838804,-440.0,0.00021917,3]
[379557254,1755331838814,-460.0,0.00021917,3]
[379557255,1755331838823,-480.0,0.00021917,3]
[379557256,1755331838832,-440.0,0.00021917,3]
[379557257,1755331838842,-480.0,0.00021917,3]
[379557258,1755331838851,-191.63057154,0.00021917,3]
[379557259,1755331838860,-440.0,0.00021917,3]
[379557260,1755331838869,-480.0,0.00021917,3]
[379557261,1755331838878,-329.81372945,0.00021917,3]
[379557262,1755331838887,-4668.65,0.00021917,3]
[379557263,1755331838897,-4677.11,0.00021917,3]
[379557264,1755331838906,-460.0,0.00021917,3]
[379557265,1755331838920,-1145.29,0.00021917,3]
[379557266,1755331838929,-420.0,0.00021917,3]
[379557267,1755331838938,-480.0,0.00021917,3]
[379557268,1755331838948,-480.0,0.00021917,3]
[379557269,1755331838958,-480.0,0.00021917,3]
[379557270,1755331838968,-480.0,0.00021917,3]
[379557271,1755331838977,-814.74,0.00021917,3]
[379557272,1755331838988,-460.0,0.00021917,3]
[379557273,1755331838997,-460.0,0.00021917,3]
[379557274,1755331839007,-151.94,0.00021917,3]
[379557275,1755331839016,-480.0,0.00021917,3]
[379557276,1755331839027,-460.0,0.00021917,3]
[379557277,1755331839043,-413.10284413,0.00021917,3]
[379557278,1755331839065,-500.0,0.00021917,3]
[379557279,1755331839074,-460.0,0.00021917,3]
[379557280,1755331839083,-486.34224013,0.00021917,3]
[379557281,1755331839094,-440.0,0.00021917,3]
[379557282,1755331839103,-480.0,0.00021917,3]
[379557283,1755331839112,-460.0,0.00021917,3]
[379557284,1755331839122,-550.28,0.00021917,3]
[379557285,1755331839131,-480.0,0.00021917,3]
[379557286,1755331839140,-480.0,0.00021917,3]
[379557287,1755331839150,-440.0,0.00021917,3]
[379557288,1755331839160,-460.0,0.00021917,3]
[379557289,1755331839170,-480.0,0.00021917,3]
[379557290,1755331839179,-480.0,0.00021917,3]
[379557291,1755331839189,-480.0,0.00021917,3]
[379557292,1755331839199,-480.0,0.00021917,3]
[379557293,1755331839209,-460.0,0.00021917,3]
[379557294,1755331839219,-440.0,0.00021917,3]
[379557295,1755331839228,-461.60974076,0.00021917,3]
[379557296,1755331839238,-420.0,0.00021917,3]
[379557297,1755331839247,-460.0,0.00021917,3]
[379557298,1755331839257,-480.0,0.00021917,3]
[379557299,1755331839268,-480.0,0.00021917,3]
[379557300,1755331839277,-480.0,0.00021917,3]
[379557301,1755331839287,-480.0,0.00021917,3]
[379557302,1755331839296,-480.0,0.00021917,3]
[379557303,1755331839306,-480.0,0.00021917,3]
[379557304,1755331839316,-480.0,0.00021917,3]
[379557305,1755331839325,-480.0,0.00021917,3]
[379557306,1755331839335,-460.0,0.00021917,3]
[379557307,1755331839345,-511.39,0.00021917,3]
[379557308,1755331839354,-611.47992526,0.00021917,3]
[379557309,1755331839364,-480.0,0.00021917,3]
[379557310,1755331839374,-480.0,0.00021917,3]
[379557311,1755331839384,-480.0,0.00021917,3]
[379557312,1755331839393,-480.0,0.00021917,3]
[379557313,1755331839403,-480.0,0.00021917,3]
[379557314,1755331839412,-480.0,0.00021917,3]
[379557315,1755331839422,-420.0,0.00021917,3]
[379557316,1755331839431,-480.0,0.00021917,3]
[379557317,1755331839440,-480.0,0.00021917,3]
[379557318,1755331839451,-480.0,0.00021917,3]
[379557319,1755331839460,-480.0,0.00021917,3]
[379557320,1755331839470,-480.0,0.00021917,3]
[379557321,1755331839479,-480.0,0.00021917,3]
[379557322,1755331839489,-480.0,0.00021917,3]
[379557323,1755331839499,-480.0,0.00021917,3]
[379557324,1755331839508,-480.0,0.00021917,3]
[379557325,1755331839518,-480.0,0.00021917,3]
[379557326,1755331839527,-480.0,0.00021917,3]
[379557327,1755331839537,-480.0,0.00021917,3]
[379557328,1755331839546,-514.60058556,0.00021917,3]
[379557330,1755331839556,-780.16,0.00021917,3]
[379557331,1755331839566,-480.0,0.00021917,3]
[379557332,1755331839575,-480.0,0.00021917,3]